bitfinex-derivatives/quotes_SOLF0:USTF0_20260108
["timestamp","ask_amount","ask_price","bid_price","bid_amount"]
[1767851797034,1.83119116,136.65,136.57,1.20073797]
[1767851797341,5.46613452,136.64,136.57,1.25471971]
[1767851797540,5.46613452,136.63,136.57,1.25471971]
[1767851797741,5.46613452,136.62,136.57,1.25471971]
[1767851798045,5.46613452,136.61,136.57,1.25471971]
[1767851798243,1.83119116,136.65,136.57,1.25471971]
[1767851798542,6.5949,136.63,136.57,1.25471971]
[1767851798744,5.46518669,136.62,136.57,1.25471971]
[1767851802849,5.46518669,136.62,136.58,1.20073797]
[1767851806451,12.06048669,136.62,136.58,1.20073797]
[1767851806651,5.46518669,136.61,136.58,1.20073797]
[1767851806847,5.46518669,136.6,136.58,1.20073797]
[1767851807052,6.5953,136.62,136.58,1.20073797]
[1767851807252,5.4512676,136.61,136.58,1.20073797]
[1767851807452,5.4512676,136.6,136.58,1.20073797]
[1767851807656,6.5948,136.63,136.58,1.20073797]
[1767851807842,5.45053986,136.62,136.58,1.20073797]
[1767851808047,5.45053986,136.61,136.58,1.20073797]
[1767851808353,5.45053986,136.6,136.56,87.74073797]
[1767851808653,6.5954,136.62,136.59,0.04835714]
[1767851808855,0.04628304,136.59,136.56,87.74073797]
[1767851809241,6.5954,136.62,136.56,87.74073797]
[1767851809445,5.45026442,136.61,136.56,87.74073797]
[1767851809646,5.45026442,136.6,136.56,87.74073797]
[1767851809944,6.5954,136.62,136.56,87.74073797]
[1767851810144,0.05521098,136.59,136.56,87.74073797]
[1767851810340,6.5954,136.62,136.56,87.74073797]
[1767851810544,5.45143979,136.61,136.58,0.05367882]
[1767851810744,5.45143979,136.6,136.58,0.05367882]
[1767851810942,6.5954,136.62,136.58,0.05367882]
[1767851811148,5.45144549,136.61,136.58,0.05367882]
[1767851811348,5.45144549,136.6,136.58,0.05367882]
[1767851811552,6.5954,136.62,136.58,0.05367882]
[1767851811759,5.45090652,136.61,136.58,0.05367882]
[1767851811942,5.45090652,136.6,136.58,0.05367882]
[1767851812147,6.5954,136.62,136.58,0.05367882]
[1767851812346,5.45076202,136.61,136.58,0.05367882]
[1767851812551,5.45076202,136.6,136.58,0.05367882]
[1767851812752,6.5954,136.62,136.58,0.05367882]
[1767851813049,5.45076202,136.61,136.58,0.05367882]
[1767851813247,5.45076202,136.6,136.56,1.20073797]
[1767851813447,0.04677414,136.61,136.56,1.20073797]
[1767851813647,5.45067341,136.6,136.56,1.20073797]
[1767851813848,0.04677414,136.61,136.56,1.20073797]
[1767851813849,6.64257414,136.61,136.56,1.20073797]
[1767851814049,5.4507075,136.6,136.56,1.20073797]
[1767851814246,6.64257414,136.61,136.56,1.20073797]
[1767851814447,12.04661339,136.6,136.55,86.56]
[1767851814647,6.5965,136.6,136.55,86.56]
[1767851815249,5.44944679,136.59,136.55,87.76073797]
[1767851815449,6.5965,136.6,136.55,87.76073797]
[1767851815649,5.44874674,136.59,136.55,87.76073797]
[1767851815957,6.5965,136.6,136.55,87.76073797]
[1767851816256,5.4484062,136.59,136.55,87.76073797]
[1767851816455,6.5965,136.6,136.55,87.76073797]
[1767851816656,5.44786835,136.59,136.55,87.76073797]
[1767851816850,6.5965,136.6,136.55,87.76073797]
[1767851817044,5.44786835,136.59,136.55,87.76073797]
[1767851817250,6.5965,136.6,136.55,1.20073797]
[1767851817458,5.44745,136.59,136.55,1.20073797]
[1767851817659,6.5965,136.6,136.55,1.20073797]
[1767851817861,5.44708692,136.59,136.55,1.20073797]
[1767851818160,6.5965,136.6,136.55,1.20073797]
[1767851818353,5.4465156,136.59,136.55,1.20073797]
[1767851818554,6.5965,136.6,136.55,1.20073797]
[1767851818755,5.4465156,136.59,136.55,1.20073797]
[1767851819058,6.5965,136.6,136.55,1.20073797]
[1767851819259,5.44614705,136.59,136.55,1.20073797]
[1767851819455,6.5965,136.6,136.55,1.20073797]
[1767851819754,5.44568286,136.59,136.55,1.20073797]
[1767851820053,6.5965,136.6,136.55,1.20073797]
[1767851820253,5.44567567,136.59,136.55,1.20073797]
[1767851820453,6.5965,136.6,136.55,1.20073797]
[1767851820656,5.44577879,136.59,136.55,1.20073797]
[1767851820854,6.5965,136.6,136.55,1.20073797]
[1767851821054,5.44577879,136.59,136.55,1.20073797]
[1767851821254,6.5965,136.6,136.54,87.76073797]
[1767851821456,5.44586855,136.59,136.54,87.76073797]
[1767851821657,0.04677414,136.61,136.54,86.56]
[1767851821658,1.83119116,136.61,136.54,86.56]
[1767851821861,5.4443227,136.6,136.52,87.76073797]
[1767851822059,5.4443227,136.59,136.52,87.76073797]
[1767851822264,0.04716877,136.57,136.53,1.07529704]
[1767851844883,6.5962,136.61,136.54,1.06032935]
[1767851845074,5.43659985,136.6,136.54,1.06032935]
[1767851845275,5.43659985,136.59,136.54,1.06032935]
[1767851845570,5.43659985,136.58,136.54,1.06032935]
[1767851845775,5.43659985,136.57,136.54,1.06032935]
[1767851845975,189.1706,136.63,136.54,1.06032935]
[1767851846183,5.43692254,136.62,136.54,1.06032935]
[1767851846383,5.43692254,136.61,136.54,1.06032935]
[1767851846575,12.03322254,136.6,136.54,1.06032935]
[1767851846773,5.43692254,136.59,136.54,1.06032935]
[1767851848484,5.43692254,136.59,136.52,1.06032935]
[1767851848679,5.43692254,136.58,136.52,1.06032935]
[1767851848882,5.43692254,136.57,136.52,1.06032935]
[1767851849080,5.43692254,136.56,136.52,1.06032935]
[1767851851291,6.5972,136.59,136.52,1.06032935]
[1767851851593,12.03780989,136.58,136.52,1.06032935]
[1767851851888,5.44050989,136.57,136.52,1.06032935]
[1767851852087,5.44050989,136.56,136.52,1.06032935]
[1767851852287,6.5973,136.58,136.52,1.06032935]
[1767851852487,5.44108752,136.57,136.52,1.06032935]
[1767851852690,5.44108752,136.56,136.52,1.06032935]
[1767851852892,6.5973,136.58,136.52,1.06032935]
[1767851853083,5.44215869,136.57,136.52,1.06032935]
[1767851853282,5.44215869,136.56,136.52,1.06032935]
[1767851853486,6.5973,136.58,136.52,1.06032935]
[1767851853686,5.44355362,136.57,136.52,1.06032935]
[1767851853888,5.44355362,136.56,136.52,1.06032935]
[1767851854088,6.5973,136.58,136.52,1.06032935]
[1767851854292,5.44434124,136.57,136.52,1.06032935]
[1767851854479,5.44434124,136.56,136.52,1.06032935]
[1767851854683,6.5973,136.58,136.52,1.06032935]
[1767851854892,5.44363134,136.57,136.52,1.06032935]
[1767851855090,5.44363134,136.56,136.52,1.06032935]
[1767851855292,6.5973,136.58,136.52,1.06032935]
[1767851855492,5.44449337,136.57,136.52,1.06032935]
[1767851855792,5.44449337,136.56,136.52,1.06032935]
[1767851855992,6.5973,136.58,136.52,1.06032935]
[1767851856191,5.44449337,136.57,136.52,1.06032935]
[1767851856393,5.44449337,136.56,136.52,1.06032935]
[1767851856692,6.5973,136.58,136.52,1.06032935]
[1767851856893,12.0433134,136.57,136.5,1.10912134]
[1767851857081,5.4455134,136.56,136.5,1.10912134]
[1767851857285,6.5978,136.57,136.5,1.10912134]
[1767851857485,5.44685481,136.56,136.5,1.10912134]
[1767851857687,6.5978,136.57,136.5,1.10912134]
[1767851857987,5.44685481,136.56,136.5,1.10912134]
[1767851858186,5.44824238,136.55,136.5,1.10912134]
[1767851858484,6.5978,136.57,136.5,1.10912134]
[1767851858684,5.4482661,136.56,136.5,1.10912134]
[1767851858886,5.4482661,136.55,136.5,1.10912134]
[1767851859088,6.5984,136.56,136.5,1.10912134]
[1767851859291,5.44788999,136.55,136.5,1.10912134]
[1767851859494,6.5984,136.56,136.5,1.10912134]
[1767851859686,5.44885255,136.55,136.5,1.10912134]
[1767851859990,6.5984,136.56,136.5,1.10912134]
[1767851860189,5.44885256,136.55,136.5,1.10912134]
[1767851860486,6.5984,136.56,136.5,1.10912134]
[1767851860794,5.44998519,136.55,136.5,1.10912134]
[1767851861095,6.5984,136.56,136.5,1.10912134]
[1767851861291,5.44997611,136.55,136.5,1.10912134]
[1767851861593,6.5984,136.56,136.5,1.10912134]
[1767851861792,5.45037155,136.55,136.5,1.10912134]
[1767851861996,6.5984,136.56,136.5,1.10912134]
[1767851862195,5.45037155,136.55,136.5,1.10912134]
[1767851862387,5.45124401,136.54,136.5,1.10912134]
[1767851862588,6.5984,136.56,136.5,1.10912134]
[1767851862790,5.45124401,136.55,136.5,1.10912134]
[1767851862989,5.45124401,136.54,136.5,1.10912134]
[1767851863296,6.5984,136.56,136.5,1.10912134]
[1767851863496,5.45214585,136.55,136.5,1.10912134]
[1767851863688,5.45214585,136.54,136.5,1.10912134]
[1767851863885,6.5984,136.56,136.5,1.10912134]
[1767851864098,5.45214585,136.55,136.5,1.10912134]
[1767851864288,5.45214585,136.54,136.5,1.10912134]
[1767851864597,6.5984,136.56,136.5,1.10912134]
[1767851864801,5.45334801,136.55,136.5,1.10912134]
[1767851864990,5.45334801,136.54,136.5,1.10912134]
[1767851865190,6.5984,136.56,136.5,1.10912134]
[1767851865398,5.45302038,136.55,136.51,1.10912134]
[1767851865593,5.45302038,136.54,136.51,1.10912134]
[1767851865892,6.5975,136.58,136.51,1.10912134]
[1767851866094,5.45302038,136.57,136.51,1.10912134]
[1767851866387,5.45302038,136.56,136.51,1.10912134]
[1767851866592,5.45302038,136.55,136.51,1.10912134]
[1767851866794,5.45302038,136.54,136.51,1.10912134]
[1767851866995,6.5975,136.58,136.51,1.10912134]
[1767851867193,5.45457679,136.57,136.51,1.10912134]
[1767851867393,5.45457679,136.56,136.51,1.10912134]
[1767851867593,5.45457679,136.55,136.51,1.10912134]
[1767851867793,5.45457679,136.54,136.51,1.10912134]
[1767851867994,6.5975,136.58,136.51,1.10912134]
[1767851868197,5.45424176,136.57,136.51,1.10912134]
[1767851868400,5.45424176,136.56,136.51,1.10912134]
[1767851868598,5.45424176,136.55,136.51,1.10912134]
[1767851868787,5.45424176,136.54,136.51,1.10912134]
[1767851868992,6.5975,136.58,136.51,1.10912134]
[1767851869195,5.45393312,136.57,136.51,1.10912134]
[1767851869396,5.45393312,136.56,136.51,1.10912134]
[1767851869596,5.45393312,136.55,136.51,1.10912134]
[1767851869798,5.45393312,136.54,136.51,1.10912134]
[1767851869997,6.5975,136.58,136.51,1.10912134]
[1767851870198,5.45365898,136.57,136.51,1.10912134]
[1767851870394,5.45365898,136.56,136.51,1.10912134]
[1767851870595,5.45365898,136.55,136.51,1.10912134]
[1767851870897,5.45365898,136.54,136.51,1.10912134]
[1767851871199,6.5975,136.58,136.51,1.10912134]
[1767851871399,5.45556022,136.57,136.51,1.10912134]
[1767851871703,5.45556022,136.56,136.51,1.10912134]
[1767851872003,5.45556022,136.55,136.51,1.10912134]
[1767851872201,5.45501973,136.54,136.51,1.10912134]
[1767851872403,6.5975,136.58,136.51,1.10912134]
[1767851872591,5.45484715,136.57,136.51,1.10912134]
[1767851872794,5.45484715,136.56,136.51,1.10912134]
[1767851872993,5.45484715,136.55,136.51,1.10912134]
[1767851873202,5.45484715,136.54,136.51,1.10912134]
[1767851873405,6.5975,136.58,136.51,1.10912134]
[1767851873703,5.45506822,136.57,136.51,1.10912134]
[1767851873903,5.45506822,136.56,136.51,1.10912134]
[1767851874201,5.45506822,136.55,136.51,1.10912134]
[1767851874397,5.45506822,136.54,136.51,1.10912134]
[1767851874599,6.5975,136.58,136.51,7.70972134]
[1767851874799,5.45495377,136.57,136.51,7.70972134]
[1767851875001,5.45495377,136.56,136.51,7.70972134]
[1767851875305,5.45495377,136.55,136.51,7.70972134]
[1767851875506,5.3596982,136.54,136.51,7.70972134]
[1767851875706,6.5975,136.58,136.51,7.70972134]
[1767851877512,105.43711671,136.65,136.53,1.10912134]
[1767851877705,192.03711671,136.65,136.53,1.10912134]
[1767851878604,6.596,136.61,136.54,6.5991]
[1767851880218,6.596,136.61,136.54,7.70822134]
[1767851880714,6.596,136.61,136.55,6.5987]
[1767851880917,192.03711671,136.65,136.55,6.5987]
[1767851881112,105.42321671,136.67,136.55,1.10912134]
[1767851881322,105.42321671,136.67,136.57,7.70662134]
[1767851882704,6.5948,136.64,136.57,7.70662134]
[1767851883905,6.5948,136.64,136.54,189.2542]
[1767851883906,6.5937,136.66,136.58,1.1044152]
[1767851884105,6.5937,136.66,136.58,7.7016152]
[1767851884820,6.5941,136.65,136.58,1.1044152]
[1767851887716,5.43374684,136.64,136.58,1.1044152]
[1767851887920,5.43374684,136.63,136.58,1.1044152]
[1767851888110,5.43374684,136.62,136.58,1.1044152]
[1767851888406,5.43374684,136.61,136.58,1.1044152]
[1767851888611,6.5941,136.65,136.58,1.1044152]
[1767851888812,5.43248616,136.64,136.58,7.7016152]
[1767851889008,5.43248616,136.63,136.59,1.1044152]
[1767851889225,6.5932,136.67,136.59,1.1044152]
[1767851889519,5.43098448,136.66,136.59,1.1044152]
[1767851889722,89.44441671,136.7,136.59,1.1044152]
[1767851889921,89.44441671,136.7,136.57,189.2089]
[1767851889922,6.5925,136.68,136.61,1.1044152]
[1767851890121,5.43111945,136.67,136.61,1.1044152]
[1767851890323,5.43111945,136.66,136.61,1.1044152]
[1767851890621,6.5925,136.68,136.61,1.1044152]
[1767851890821,5.42658305,136.67,136.61,1.1044152]
[1767851891012,5.42658305,136.66,136.61,1.1044152]
[1767851891214,6.5925,136.68,136.61,1.1044152]
[1767851891513,5.42306003,136.67,136.61,1.1044152]
[1767851891713,5.42306003,136.66,136.61,1.1044152]
[1767851892022,6.593,136.67,136.6,6.5962]
[1767851892224,5.40806136,136.66,136.6,6.5962]
[1767851892424,6.593,136.67,136.59,1.1044152]
[1767851892723,5.4053978,136.66,136.59,1.1044152]
[1767851892925,6.593,136.67,136.59,1.1044152]
[1767851893119,5.40539945,136.66,136.59,1.1044152]
[1767851893319,6.593,136.67,136.59,1.1044152]
[1767851894523,6.593,136.67,136.59,7.7011152]
[1767851894825,6.593,136.67,136.6,1.1044152]
[1767851896515,6.5936,136.66,136.6,1.1044152]
[1767851900031,6.5939,136.65,136.58,7.7016152]
[1767851901328,6.5944,136.64,136.58,1.1044152]
[1767851901623,6.5944,136.64,136.56,1.1044152]
[1767851902634,6.5944,136.64,136.56,7.7025152]
[1767851903228,6.5944,136.64,136.57,1.1044152]
[1767851904933,6.5944,136.64,136.58,1.1044152]
[1767851908238,6.5937,136.66,136.58,7.7016152]
[1767851908439,5.39482288,136.65,136.58,7.7016152]
[1767851908739,1.83148635,136.67,136.58,7.7016152]
[1767851908938,5.39500187,136.66,136.58,7.7016152]
[1767851909140,5.39500187,136.65,136.58,7.7016152]
[1767851909328,1.83148635,136.67,136.58,7.7016152]
[1767851909532,6.5939,136.65,136.58,7.7016152]
[1767851910240,6.5933,136.67,136.6,1.1044152]
[1767851910439,1.83148635,136.7,136.6,1.1044152]
[1767851910643,5.39696998,136.69,136.6,1.1044152]
[1767851910843,5.39696998,136.68,136.6,1.1044152]
[1767851911047,1.83148635,136.7,136.61,1.1044152]
[1767851911231,5.39719987,136.69,136.62,1.1044152]
[1767851911436,1.83148635,136.71,136.62,1.1044152]
[1767851911639,5.3975379,136.7,136.62,1.1044152]
[1767851911839,1.83148635,136.67,136.6,1.1044152]
[1767851912039,5.39640358,136.66,136.58,1.03640404]
[1767851912240,1.83148635,136.67,136.58,1.03640404]
[1767851912544,5.39757818,136.66,136.58,1.03640404]
[1767851912839,5.39734127,136.65,136.58,1.03640404]
[1767851913049,1.83148635,136.67,136.58,1.03640404]
[1767851913245,5.39751718,136.66,136.58,1.03640404]
[1767851913442,11.99141718,136.65,136.58,1.03640404]
[1767851913644,6.5939,136.65,136.58,1.03640404]
[1767851914447,5.39947345,136.64,136.58,1.03640404]
[1767851914650,6.5945,136.64,136.56,1.03640404]
[1767851915239,6.595,136.63,136.56,7.63450404]
[1767851917249,6.595,136.63,136.57,1.03640404]
[1767851920341,5.41072005,136.62,136.57,1.03640404]
[1767851920541,6.595,136.63,136.57,1.03640404]
[1767851920737,5.41072005,136.62,136.57,1.03640404]
[1767851920941,6.595,136.63,136.57,1.03640404]
[1767851921142,5.41072005,136.62,136.57,1.03640404]
[1767851921450,6.595,136.63,136.57,1.03640404]
[1767851921646,5.40471529,136.62,136.57,1.03640404]
[1767851921850,6.595,136.63,136.57,1.03640404]
[1767851922050,5.40471529,136.62,136.57,1.03640404]
[1767851922349,6.595,136.63,136.57,1.03640404]
[1767851922549,5.40793703,136.62,136.57,1.03640404]
[1767851922749,6.595,136.63,136.57,1.03640404]
[1767851922950,5.40793703,136.62,136.57,1.03640404]
[1767851923148,6.595,136.63,136.57,1.03640404]
[1767851923350,5.40816537,136.62,136.57,1.03640404]
[1767851923552,6.595,136.63,136.57,1.03640404]
[1767851923746,5.40929916,136.62,136.57,1.03640404]
[1767851923948,6.5943,136.65,136.57,1.03640404]
[1767851924145,5.40929916,136.64,136.57,7.63410404]
[1767851924345,5.40929916,136.63,136.57,7.63410404]
[1767851924545,5.40929916,136.62,136.57,7.63410404]
[1767851924751,5.40929916,136.61,136.57,7.63410404]
[1767851924942,8.42528635,136.66,136.58,7.63350404]
[1767851925146,5.41137084,136.65,136.59,1.03640404]
[1767851925348,5.41137084,136.64,136.59,1.03640404]
[1767851925654,5.41137084,136.63,136.59,1.03640404]
[1767851925855,5.41137084,136.62,136.59,1.03640404]
[1767851926149,6.5942,136.65,136.59,1.03640404]
[1767851926456,5.412996,136.64,136.59,1.03640404]
[1767851926646,5.412996,136.63,136.59,1.03640404]
[1767851926841,5.412996,136.62,136.59,1.03640404]
[1767851927046,6.5942,136.65,136.59,1.03640404]
[1767851927254,5.41302114,136.64,136.59,1.03640404]
[1767851927455,5.41302114,136.63,136.59,1.03640404]
[1767851927655,5.41302114,136.62,136.59,1.03640404]
[1767851927955,6.5942,136.65,136.59,1.03640404]
[1767851928154,5.41373128,136.64,136.59,1.03640404]
[1767851928356,5.41373128,136.63,136.59,1.03640404]
[1767851928555,5.41373128,136.62,136.59,1.03640404]
[1767851928756,6.5942,136.65,136.59,1.03640404]
[1767851928958,5.41433915,136.64,136.59,1.03640404]
[1767851929253,5.41433915,136.63,136.59,1.03640404]
[1767851929454,5.41433915,136.62,136.59,1.03640404]
[1767851929757,6.5942,136.65,136.59,1.03640404]
[1767851929959,5.41474356,136.64,136.59,1.03640404]
[1767851930253,5.41474356,136.63,136.59,7.63310404]
[1767851930454,6.5942,136.65,136.59,7.63310404]
[1767851930757,5.41563603,136.64,136.59,7.63310404]
[1767851931053,6.5931,136.67,136.61,1.03640404]
[1767851931356,7.18663209,136.67,136.61,1.03640404]
[1767851932955,7.18663209,136.67,136.63,0.0466579]
[1767851937165,7.1477507,136.65,136.58,7.63340404]
[1767851938567,0.05104655,136.63,136.58,7.63340404]
[1767851939763,7.15079164,136.67,136.6,1.03640404]
[1767851939963,0.55749164,136.67,136.6,1.03640404]
[1767851941163,0.55749164,136.67,136.62,0.04830694]
[1767851941670,6.5935,136.66,136.62,0.04830694]
[1767851942258,7.15441193,136.66,136.62,0.04830694]
[1767851942463,7.15491193,136.65,136.62,0.04830694]
[1767851943068,5.37190906,136.64,136.62,0.04830694]
[1767851943264,7.15491193,136.65,136.62,0.04830694]
[1767851943460,5.37197247,136.64,136.62,0.04830694]
[1767851943661,7.15491193,136.65,136.62,0.04830694]
[1767851943965,5.37196592,136.64,136.62,0.04830694]
[1767851944166,7.15491193,136.65,136.62,0.04830694]
[1767851944367,5.372035,136.64,136.58,7.58489087]
[1767851944567,0.05086499,136.64,136.58,7.58489087]
[1767851950069,0.05086499,136.64,136.59,7.62173919]
[1767851950465,0.05086499,136.64,136.6,1.02503919]
[1767851951794,7.21773893,136.68,136.61,1.02503919]
[1767851952090,5.35615254,136.67,136.61,1.0757246]
[1767851952288,5.35615254,136.66,136.61,1.0757246]
[1767851952492,5.35615254,136.65,136.61,1.0757246]
[1767851952789,0.62605022,136.66,136.61,0.05068541]
[1767851952986,5.98213805,136.65,136.61,0.05068541]
[1767851953183,0.62605022,136.65,136.61,0.05068541]
[1767851962198,5.35765865,136.64,136.61,0.05068541]
[1767851962397,0.62605022,136.65,136.61,0.05068541]
[1767851962588,5.35779567,136.64,136.61,0.05068541]
[1767851962789,0.62605022,136.65,136.61,0.05068541]
[1767851962992,5.35779567,136.64,136.61,0.05068541]
[1767851963289,0.62605022,136.65,136.61,0.05068541]
[1767851963599,5.35814404,136.64,136.61,0.05068541]
[1767851963790,0.62605022,136.65,136.61,0.05068541]
[1767851963990,5.35814404,136.64,136.61,0.05068541]
[1767851964190,0.62605022,136.65,136.61,0.05068541]
[1767851964490,5.35880346,136.64,136.61,0.05068541]
[1767851964690,0.62605022,136.65,136.61,0.05068541]
[1767851964886,5.35880184,136.64,136.61,0.05068541]
[1767851965090,0.62605022,136.65,136.61,0.05068541]
[1767851965295,5.35940422,136.64,136.61,0.05068541]
[1767851965497,0.62605022,136.65,136.61,0.05068541]
[1767851965796,5.35954404,136.64,136.61,0.05068541]
[1767851965996,0.62605022,136.65,136.61,0.05068541]
[1767851966198,5.35971475,136.64,136.61,0.05068541]
[1767851966395,0.62605022,136.65,136.61,0.05068541]
[1767851966596,5.36055242,136.64,136.61,0.05068541]
[1767851966796,0.62605022,136.65,136.61,0.05068541]
[1767851966997,5.36055242,136.64,136.61,0.05068541]
[1767851967197,0.62605022,136.65,136.61,0.05068541]
[1767851967399,5.36150555,136.64,136.61,0.05068541]
[1767851967695,0.62605022,136.65,136.61,0.05068541]
[1767851967896,5.36150555,136.64,136.61,0.05068541]
[1767851968100,0.62605022,136.65,136.61,0.05068541]
[1767851968297,5.36248102,136.64,136.61,0.05068541]
[1767851968501,0.62605022,136.65,136.61,0.05068541]
[1767851968702,5.36260336,136.64,136.61,0.05068541]
[1767851968905,2.86118469,136.7,136.61,1.0757246]
[1767851969203,5.36289012,136.69,136.61,1.0757246]
[1767851969505,5.36289012,136.68,136.61,1.02503919]
[1767851969703,5.36289012,136.67,136.64,0.05529109]
[1767851969903,5.36289012,136.66,136.64,0.05529109]
[1767851970106,5.36289012,136.65,136.64,0.05529109]
[1767851971202,0.59597305,136.68,136.64,0.05529109]
[1767851971500,5.36502697,136.67,136.64,0.05529109]
[1767851971696,0.59597305,136.68,136.64,0.05529109]
[1767851971897,0.59697048,136.67,136.64,0.05529109]
[1767851976603,0.54518799,136.66,136.59,7.6580581]
[1767851977303,0.54518799,136.66,136.6,6.5963]
[1767851978012,0.05312769,136.64,136.6,6.5963]
[1767851980106,0.05312769,136.64,136.6,7.6580581]
[1767851980608,0.05312769,136.64,136.61,7.6574581]
[1767851981014,0.54518799,136.66,136.61,7.6574581]
[1767851981211,0.54518799,136.66,136.61,7.7081688]
[1767851981912,0.55149054,136.68,136.62,6.5953]
[1767851983902,0.55149054,136.68,136.62,7.6570581]
[1767851985007,0.55149054,136.68,136.63,6.5948]
[1767851985510,0.55149054,136.68,136.63,7.6565581]
[1767851985811,0.55149054,136.68,136.64,0.05434581]
[1767851986016,0.55542654,136.7,136.64,0.05434581]
[1767851987515,0.55637886,136.69,136.64,0.05434581]
[1767851991838,0.56100892,136.68,136.64,0.05434581]
[1767852000234,6.5905,136.72,136.65,7.6554581]
[1767852000528,0.56786988,136.72,136.65,1.0617581]
[1767852001230,0.56867795,136.71,136.67,0.04781074]
[1767852001825,22.15140683,136.76,136.68,1.0617581]
[1767852001826,0.56947616,136.75,136.68,1.0617581]
[1767852002633,0.56977909,136.74,136.68,7.6541581]
[1767852002826,0.56977909,136.74,136.7,0.04667804]
[1767852004238,6.5885,136.77,136.7,0.04667804]
[1767852004239,0.57207388,136.77,136.71,6.5909]
[1767852004422,0.57207388,136.77,136.71,1.09072075]
[1767852004626,102.4336,136.84,136.71,1.09072075]
[1767852004627,0.57207388,136.82,136.71,1.09072075]
[1767852004826,0.57282766,136.81,136.72,1.09072075]
[1767852005737,0.57282766,136.8,136.72,7.68112075]
[1767852006035,0.57357413,136.79,136.69,1.09072075]
[1767852007528,0.57432358,136.77,136.7,6.5913]
[1767852008822,0.57432358,136.77,136.7,7.68202075]
[1767852010732,0.57432358,136.77,136.71,1.09072075]
[1767852011233,0.57721954,136.79,136.72,1.09072075]
[1767852012040,0.57721954,136.79,136.73,1.09072075]
[1767852012335,0.57791629,136.81,136.73,1.09072075]
[1767852013128,0.57791629,136.81,136.73,7.68052075]
[1767852013930,0.57791629,136.81,136.74,1.09072075]
[1767852014240,0.57927887,136.8,136.71,1.09072075]
[1767852014635,0.57927887,136.76,136.68,7.68292075]
[1767852015640,0.57927887,136.76,136.7,1.09072075]
[1767852015843,7.16864523,136.78,136.7,1.09072075]
[1767852016148,0.58064523,136.77,136.7,1.09072075]
[1767852016645,0.58064523,136.77,136.7,7.68202075]
[1767852017345,0.58064523,136.77,136.7,1.09072075]
[1767852017532,0.58131548,136.76,136.7,1.09072075]
[1767852019146,6.5882,136.77,136.7,1.09072075]
[1767852019738,7.17144778,136.77,136.7,1.09072075]
[1767852019946,7.17194778,136.76,136.7,1.09072075]
[1767852026541,0.58691479,136.78,136.72,1.09072075]
[1767852027548,7.17461479,136.78,136.72,1.09072075]
[1767852027948,0.58808117,136.77,136.72,1.09072075]
[1767852031057,0.58978323,136.79,136.72,1.09072075]
[1767852032162,7.17860085,136.78,136.72,1.09072075]
[1767852034561,7.180086,136.77,136.7,1.02408618]
[1767852035053,0.59243037,136.76,136.7,1.02408618]
[1767852035650,0.59243037,136.76,136.7,7.61538618]
[1767852040760,6.5882,136.77,136.67,102.5521]
[1767852040761,0.59550696,136.75,136.67,1.02408618]
[1767852041761,0.59550696,136.73,136.67,7.61678618]
[1767852043062,0.59550696,136.73,136.68,1.02408618]
[1767852043663,6.5895,136.74,136.68,1.02408618]
[1767852043962,0.59650914,136.75,136.68,1.02408618]
[1767852045161,7.18560914,136.75,136.68,7.61648618]
[1767852046062,0.59650914,136.75,136.69,7.61598618]
[1767852046968,0.59650914,136.75,136.7,1.02408618]
[1767852047463,9.01509149,136.77,136.7,7.61548618]
[1767852048065,0.59840028,136.77,136.7,7.61548618]
[1767852049463,0.59840028,136.77,136.72,1.02408618]
[1767852049662,6.5877,136.78,136.72,1.02408618]
[1767852050160,7.1874565,136.78,136.72,1.02408618]
[1767852050365,7.1867565,136.8,136.73,7.61398618]
[1767852053463,0.5997565,136.8,136.74,7.61348618]
[1767852053662,2.42944216,136.82,136.75,1.02408618]
[1767852054161,0.60105095,136.82,136.75,1.02408618]
[1767852055562,7.18685095,136.82,136.75,1.02408618]
[1767852055762,0.60229534,136.81,136.75,1.02408618]
[1767852055963,0.60229534,136.81,136.73,1.02408618]
[1767852056165,6.5877,136.78,136.73,1.02408618]
[1767852057564,0.60229534,136.79,136.73,1.02408618]
[1767852058568,7.18949534,136.79,136.73,1.02408618]
[1767852060068,0.60229534,136.79,136.73,1.02408618]
[1767852060268,0.60391198,136.8,136.74,1.02408618]
[1767852060567,0.60391198,136.78,136.72,1.02408618]
[1767852061355,7.19151198,136.78,136.72,1.02408618]
[1767852061958,0.60391198,136.78,136.72,1.02408618]
[1767852063272,7.19151198,136.78,136.72,1.02408618]
[1767852063468,0.60611316,136.77,136.7,1.06001134]
[1767852063965,7.19508526,136.76,136.7,1.06001134]
[1767852064166,9.02347647,136.76,136.7,1.06001134]
[1767852064368,0.60648526,136.75,136.69,86.46]
[1767852064765,0.60648526,136.75,136.69,7.65191134]
[1767852064964,0.60685279,136.77,136.7,1.06001134]
[1767852065575,0.60685279,136.77,136.71,7.65091134]
[1767852067373,0.60685279,136.77,136.69,7.65161134]
[1767852067569,2.435244,136.77,136.7,1.06001134]
[1767852067771,0.60791921,136.76,136.68,94.11201134]